[Event "WWRR IM-Group 2024"]
[Site "Wachtebeke"]
[Date "2024.02.12"]
[Round "2.1"]
[White "Leenhouts, Koen"]
[Black "Matnadze Bujiashvili, Ann"]
[Result "1-0"]
[ECO "E20"]
[WhiteElo "2433"]
[BlackElo "2364"]
[Annotator "RC"]
[PlyCount "79"]
[EventDate "2024.02.12"]
[EventType "tourn"]
[EventCountry "BEL"]
[SourceTitle "playchess.com"]
[Source "ChessBase"]
[SourceQuality "1"]
[TimeControl "40/5400+30:900+30"]

1. d4 {[%emt 0:00:03]} Nf6 {[%emt 0:00:07]} 2. c4 {[%emt 0:00:09]} e6 {[%emt 0:00:05]} 3. Nc3 {[%emt 0:00:09]} Bb4 {[%emt 0:00:07]} 4. f3 {[%emt 0:00:11]} c5 {[%emt 0:00:17]} 5. d5 {[%emt 0:00:06]} Nh5 {[%emt 0:00:29]} 6. Nh3 {[%emt 0:00:16]} Qh4+ {[%emt 0:01:05]} 7. Nf2 {[%emt 0:00:07]} Qxc4 {[%emt 0:00:05]} 8. e4 {[%emt 0:00:13]} Bxc3+ {[%emt 0:00:09]} 9. bxc3 {[%emt 0:00:07]} Qxc3+ {[%emt 0:00:02]} 10. Bd2 {[%emt 0:00:10]} Qd4 {[%emt 0:00:08]} 11. Qc1 {[%emt 0:01:17]} exd5 {[%emt 0:00:20]} 12. Bc3 {[%emt 0:06:19]} Qa4 {[%emt 0:00:07]} 13. Qg5 {[%emt 0:02:27]} d6 {[%emt 0:14:02]} 14. Qxh5 {[%emt 0:01:36]} d4 {[%emt 0:00:06]} 15. Bd2 {[%emt 0:01:24]} O-O {[%emt 0:02:08]} 16. Be2 {[%emt 0:11:27]} Be6 {[%emt 0:08:02]} 17. O-O {[%emt 0:08:17]} Nc6 {[%emt 0:01:19]} 18. f4 {[%emt 0:08:51]} f6 {[%emt 0:03:36]} 19. Bg4 {[%emt 0:01:41]} Bf7 {[%emt 0:00:20]} 20. Qh3 {[%emt 0:03:25]} Rfe8 {[%emt 0:13:37]} 21. Bf5 {[%emt 0:02:10]} h6 {[%emt 0:01:36]} 22. Ng4 {[%emt 0:00:56]} h5 {[%emt 0:02:06]} 23. Nf2 {[%emt 0:02:38]} Rad8 {[%emt 0:03:51]} 24. g4 {[%emt 0:03:32]} Ne7 {[%emt 0:17:37]} 25. gxh5 {[%emt 0:01:42]} Nxf5 {[%emt 0:00:05]} 26. exf5 {[%emt 0:02:38]} Qc2 {[%emt 0:00:52]} 27. h6 {[%emt 0:07:45]} g6 {[%emt 0:08:07]} 28. Qh4 {[%emt 0:03:33]} Qxf5 {[%emt 0:07:44]} 29. Ng4 {[%emt 0:00:29]} Re2 {[%emt 0:06:52]} 30. Nxf6+ {[%emt 0:05:27]} Kh8 {[%emt 0:00:23]} 31. Rf2 {[%emt 0:00:18]} Rxf2 {[%emt 0:03:30]} 32. Kxf2 {[%emt 0:01:07]} Rf8 {[%emt 0:00:26]} 33. Nd7 {[%emt 0:05:26]} Re8 {[%emt 0:04:48]} 34. Re1 {[%emt 0:01:10]} Rxe1 {[%emt 0:01:01]} 35. Kxe1 {[%emt 0:02:10]} Bg8 {[%emt 0:00:25]} 36. Qf6+ {[%emt 0:00:27]} Qxf6 {[%emt 0:00:06]} 37. Nxf6 {[%emt 0:00:05]} Bxa2 {[%emt 0:00:23]} 38. f5 {[%emt 0:00:10]} gxf5 {[%emt 0:00:38]} 39. Bf4 {[%emt 0:00:06]} c4 {[%emt 0:00:27]} 40. Bxd6 {[%emt 0:00:07]} 1-0

[Event "WWRR IM-Group 2024"]
[Site "Wachtebeke"]
[Date "2024.02.12"]
[Round "2.2"]
[White "Dobrikov, Marco"]
[Black "De Waele, Warre"]
[Result "1/2-1/2"]
[ECO "D38"]
[WhiteElo "2260"]
[BlackElo "2345"]
[Annotator "TA"]
[PlyCount "115"]
[EventDate "2024.02.12"]
[EventType "tourn"]
[EventCountry "BEL"]
[SourceTitle "playchess.com"]
[Source "ChessBase"]
[SourceQuality "1"]
[TimeControl "40/5400+30:900+30"]

{[%evp 12,115,26,9,29,16,18,18,23,18,14,16,24,7,11,-7,-6,-20,-21,-32,-31,-31,-21,-18,-14,-22,-35,-25,-15,-16,-30,-27,-18,-24,-23,-31,-27,-27,-22,-24,-21,-25,-30,-16,-17,-19,0,0,0,0,0,0,0,0,0,0,0,0,0,-8,0,0,0,-8,-8,-8,0,0,0,-8,-14,-95,-65,-200,-192,-381,-375,-372,-376,-388,-388,-388,-388,-388,-388,-388,-388,-374,-52,-62,-62,-70,-86,-92,-92,-92,-92,-92,-92,-92,-92,-92,-8,-8,-8,-8]} 1. d4 {[%emt 0:00:04]} Nf6 {[%emt 0:00:40]} 2. c4 {[%emt 0:00:06]} e6 {[%emt 0:00:06]} 3. Nf3 {[%emt 0:00:06]} d5 {[%emt 0:00:39]} 4. Nc3 {[%emt 0:00:18]} Bb4 {[%emt 0:01:04]} 5. cxd5 {[%emt 0:00:06]} exd5 {[%emt 0:00:05]} 6. Bg5 {[%emt 0:00:04]} h6 {[%emt 0:00:32]} 7. Bh4 {[%emt 0:00:04]} Nbd7 {[%emt 0:01:39]} 8. e3 {[%emt 0:04:04]} g5 {[%emt 0:00:12]} 9. Bg3 {[%emt 0:00:04]} Ne4 {[%emt 0:00:08]} 10. Nd2 {[%emt 0:02:02]} Nxg3 {[%emt 0:00:12]} 11. hxg3 {[%emt 0:00:06]} c6 {[%emt 0:07:29]} 12. Qc2 {[%emt 0:02:26]} Nb6 {[%emt 0:02:54]} 13. Be2 {[%emt 0:03:24]} Be6 {[%emt 0:02:10]} 14. O-O-O {[%emt 0:02:06]} Qf6 {[%emt 0:04:38]} 15. Rhf1 {[%emt 0:02:04]} O-O-O {[%emt 0:03:38]} 16. Na4 {[%emt 0:14:29]} Qe7 {[%emt 0:02:02]} 17. Nc5 {[%emt 0:08:03]} Bxc5 {[%emt 0:05:17]} 18. Qxc5 {[%emt 0:00:22]} Qxc5+ {[%emt 0:00:59]} 19. dxc5 {[%emt 0:00:02]} Nd7 {[%emt 0:00:23]} 20. b4 {[%emt 0:00:45] [#]} a5 $1 {[%emt 0:11:09]} 21. a3 {[%emt 0:00:24]} Kc7 {[%emt 0:00:51]} 22. Nb3 {[%emt 0:01:08]} axb4 23. axb4 {[%emt 0:00:02]} Ra8 {[%emt 0:01:33]} 24. Kb2 {[%emt 0:00:51]} Ra4 {[%emt 0:05:04]} 25. b5 {[%emt 0:17:42]} Rha8 {[%emt 0:14:46]} 26. Ra1 {[%emt 0:13:42] Prevents Ra2+.} Rxa1 {[%emt 0:00:43]} 27. Rxa1 {[%emt 0:00:02]} Rxa1 {[%emt 0:00:10]} 28. Kxa1 $11 {[%emt 0:00:58][%mdl 4096] Endgame. KBN-KBN} d4 {[%emt 0:00:26]} 29. Nxd4 {[%emt 0:00:14]} Nxc5 {[%emt 0:00:07]} 30. bxc6 {[%emt 0:00:20]} bxc6 {[%emt 0:00:08]} 31. f3 {[%emt 0:02:52] Prevents Ne4} Bd7 {[%emt 0:01:48]} 32. Kb2 {[%emt 0:00:19]} Kd6 {[%emt 0:00:40]} 33. Kc3 {[%emt 0:00:12]} Na4+ {[%emt 0:05:23]} 34. Kd2 {[%emt 0:00:51]} c5 {[%emt 0:01:16]} 35. Nc2 {[%emt 0:00:18]} Be6 {[%emt 0:00:36]} 36. Na3 {[%emt 0:02:06]} Nb6 {[%emt 0:00:09]} 37. Kc3 {[%emt 0:00:55]} f5 {[%emt 0:00:55]} 38. Bd3 {[%emt 0:01:27]} h5 {[%emt 0:03:15]} 39. f4 {[%emt 0:04:15]} gxf4 {[%emt 0:02:28]} 40. gxf4 {[%emt 0:01:58]} h4 {[%emt 0:00:20]} 41. Nb5+ {[%emt 0:21:10]} (41. Kd2 $11 {remains equal.}) 41... Ke7 {[%emt 0:18:02]} 42. Kd2 {[%emt 0:04:09]} ({White should play} 42. Bf1 $15) 42... Nc4+ $1 $19 {[%emt 0:04:33]} 43. Ke2 $2 {[%emt 0:01:00]} (43. Ke1 {only move.}) 43... Nb2 {[%emt 0:00:52]} 44. Nc3 {[%emt 0:00:18]} Nxd3 {[%emt 0:00:49]} 45. Kxd3 {[%emt 0:00:02] KB-KN} Bd7 {[%emt 0:01:20] And now ...Bc6 would win.} 46. e4 {[%emt 0:00:00] [#]} Bc6 $1 {[%emt 0:00:00] Hoping for ...Bxe4+.} 47. e5 {[%emt 0:02:41]} Bxg2 {[%emt 0:00:00]} 48. Ke3 {[%emt 0:00:01]} Bc6 {[%emt 0:00:00] ( -> ...h3)} 49. Kf2 {[%emt 0:00:01]} Kd7 $2 {[%emt 0:00:00]} ({Better is} 49... Kf8 $19 {...c4 is the strong threat.} 50. Nb1 c4) 50. Kg1 $1 $15 {[%emt 0:00:05]} Bf3 $1 {[%emt 0:00:00]} 51. Kh2 {[%emt 0:01:02]} Bg4 $1 {[%emt 0:00:00]} 52. Na4 {[%emt 0:01:08]} Kc6 {[%emt 0:00:00] Strongly threatening ...c4.} 53. e6 {[%emt 0:03:28]} c4 {[%emt 0:02:48]} 54. e7 {[%emt 0:00:07] [#]} Bh5 {[%emt 0:00:25]} 55. Kh3 {[%emt 0:00:06]} Be8 {[%emt 0:00:37] Threatens to win with ...Kd6.} 56. Kxh4 {[%emt 0:00:05]} Kd5 {[%emt 0:00:42]} ({Black should try} 56... Kd6 $17 57. Nc3 Kxe7) 57. Nb6+ $11 {[%emt 0:00:13]} Kc5 {[%emt 0:01:00]} (57... Kd4 $5 58. Nxc4 (58. Kg5 $2 c3 $19) 58... Kxc4 $11) 58. Nxc4 $1 {[%emt 0:00:03] Whites escaped into a draw.   Weighted Error Value: White=0.13 (very precise) /Black=0.14 (very precise) .  Missed win:     	---       	Black=1      Mistake:       	White=3     	Black=1      Inaccurate:     	---       	Black=1      OK:         	White=17    	Black=21     Best:        	White=4     	Black=3      Strong:       	White=2     	Black=4} 1/2-1/2

[Event "WWRR IM-Group 2024"]
[Site "Wachtebeke"]
[Date "2024.02.12"]
[Round "2.3"]
[White "Victor, Julian"]
[Black "Van Cappellen, Jonas"]
[Result "1-0"]
[ECO "E04"]
[WhiteElo "2216"]
[BlackElo "2212"]
[Annotator "TA"]
[PlyCount "101"]
[EventDate "2024.02.12"]
[EventType "tourn"]
[EventCountry "BEL"]
[SourceTitle "playchess.com"]
[Source "ChessBase"]
[SourceQuality "1"]
[TimeControl "40/5400+30:900+30"]

{[%evp 14,101,24,7,20,26,27,17,27,37,50,0,0,0,17,8,3,31,18,-15,56,33,33,30,26,26,45,29,36,21,66,57,83,66,101,101,106,108,115,115,110,93,122,115,148,122,298,229,214,122,691,693,656,615,5397,394,372,364,6078,6078,6078,6078,6078,6078,6078,6078,6078,6078,6078,6078,6070,6070,29980,2775,5826,5826,2241,533,685,529,468,393,29985,29986,29986,29987,29991,29992,29992,29988]} 1. Nf3 {[%emt 0:00:04]} Nf6 {[%emt 0:00:09]} 2. c4 {[%emt 0:00:08]} e6 {[%emt 0:00:20]} 3. g3 {[%emt 0:00:10]} d5 {[%emt 0:01:05]} 4. d4 {[%emt 0:00:06]} dxc4 {[%emt 0:02:59]} 5. Bg2 {[%emt 0:00:06]} Bd7 {[%emt 0:01:34]} 6. Ne5 {[%emt 0:00:25]} Bc6 {[%emt 0:00:13]} 7. Nxc6 {[%emt 0:00:05]} Nxc6 {[%emt 0:00:07]} 8. O-O {[%emt 0:00:24]} Qd7 {[%emt 0:00:13]} (8... Nxd4 9. Bxb7 Rb8 10. Bg2 $16) 9. e3 {[%emt 0:00:41][%mdl 1024] White has compensation.} Rd8 {[%emt 0:00:12]} 10. Nc3 {[%emt 0:12:10]} Nd5 {[%emt 0:12:08] The position is equal.} 11. Qe2 {[%emt 0:08:06]} Nb6 {[%emt 0:04:18]} 12. b3 {[%emt 0:05:57]} (12. Ne4 $14) 12... cxb3 {[%emt 0:02:23]} 13. axb3 {[%emt 0:00:28]} Bd6 {[%emt 0:04:27]} 14. Bb2 {[%emt 0:01:08]} O-O {[%emt 0:00:19]} 15. Rfc1 {[%emt 0:00:54]} a6 {[%emt 0:07:49]} 16. h4 {[%emt 0:10:14]} e5 {[%emt 0:07:42]} (16... Be7 $11) 17. Na4 {[%emt 0:03:57]} exd4 {[%emt 0:07:38]} 18. Bxc6 {[%emt 0:00:31]} bxc6 {[%emt 0:00:15]} 19. Bxd4 {[%emt 0:00:07]} Nxa4 {[%emt 0:03:57]} 20. Rxa4 {[%emt 0:05:27]} Rb8 {[%emt 0:05:44]} 21. Qb2 {[%emt 0:02:18]} f6 {[%emt 0:05:07][%cal Oc6c5]} 22. Rxa6 {[%emt 0:00:34]} Qf7 {[%emt 0:09:40]} 23. Rc3 {[%emt 0:05:40][%cal Od4c5]} c5 {[%emt 0:07:10]} 24. Bxc5 {[%emt 0:00:07]} Bxc5 {[%emt 0:00:11]} 25. Rxc5 {[%emt 0:00:06] aiming for Ra7.} Rxb3 {[%emt 0:00:43]} 26. Qc2 {[%emt 0:01:08]} Rb7 {[%emt 0:01:23] Against Ra7} 27. Qe4 {[%emt 0:04:11]} Qb3 {[%emt 0:06:18]} 28. Kg2 {[%emt 0:02:37]} Rfb8 {[%emt 0:01:49]} 29. Re6 {[%emt 0:02:23]} Kf8 {[%emt 0:03:56] Repels Re8+} (29... Rf8 $16 {is a better defense.}) 30. Rec6 {[%emt 0:03:49]} Qb1 {[%emt 0:01:50] [#]} 31. Qf4 {[%emt 0:00:41] Active counter play!} (31. Rc2 $1 $18 Kg8 32. Qe7 (32. Rxc7 $2 Rxc7 33. Qe6+ Rf7 $19)) 31... Qd3 {[%emt 0:01:34][%mdl 8192] [#]} (31... Kg8 $16 32. Rxc7 Rxc7 33. Rxc7 Kh8) 32. Rxf6+ $1 $18 {[%emt 0:02:47][%mdl 512]} Kg8 {[%emt 0:00:01]} 33. Rf7 {[%emt 0:02:33][%cal Oc5f5]} Qg6 {[%emt 0:02:29]} 34. Rfxc7 {[%emt 0:00:25]} (34. Rcf5 {White threatens Rf8+ and mate.} Qc6+ 35. Kh2) 34... Rxc7 {[%emt 0:00:50]} 35. Rxc7 {[%emt 0:00:07][%mdl 4096] Endgame. Threatens to win with Qc4+. KQR-KQR} Rf8 $2 {[%emt 0:00:06]} (35... Re8 36. Qc4+ Kh8) 36. Qc4+ {[%emt 0:00:48]} Kh8 {[%emt 0:00:07]} 37. Rc8 {[%emt 0:00:24]} Qf6 {[%emt 0:00:30]} 38. Rxf8+ Qxf8 {[%emt 0:00:01] KQ-KQ} 39. e4 {[%emt 0:01:27]} h6 {[%emt 0:00:06]} 40. Qe6 {[%emt 0:00:47]} Qc5 {[%emt 0:00:22]} 41. Qd5 {[%emt 0:15:55]} Qc2 {[%emt 0:15:39]} 42. h5 {[%emt 0:01:02]} Qe2 {[%emt 0:00:06]} 43. Qf5 {[%emt 0:00:11]} (43. e5 $142 Qxh5 44. Qd8+ Kh7 45. e6 Qg5 46. e7 (46. Qxg5 hxg5 47. e7 g4 48. e8=Q g6 49. Qf7+ Kh8 50. f4 gxf3+ 51. Kxf3 g5) 46... h5 47. e8=Q (47. e8=B $2 {too greedy.} Qxd8 48. Bxh5 Qc8 $19) (47. Qd3+ Qg6 48. Qxg6+ Kxg6 49. e8=Q+ Kf6 50. f4 Kf5 51. Qe5+ Kg6 52. Qe6+ Kh7) 47... Qxd8 48. Qxd8) 43... Qd3 {[%emt 0:00:16]} 44. Kh2 {[%emt 0:01:46]} Qc2 {[%emt 0:01:13]} 45. Qf8+ {[%emt 0:01:56]} Kh7 {[%emt 0:00:02]} 46. e5 {[%emt 0:00:17][%cal Be4e5,Be5e6,Be6e7][%mdl 32] White wants to mate with e6.} Qe4 {[%emt 0:00:46]} 47. Qf4 {[%emt 0:00:23]} Qd3 {[%emt 0:01:21]} (47... Qd5 $18 48. g4 Kg8) 48. e6 {[%emt 0:00:25] White mates.} Qd5 {[%emt 0:00:15]} 49. Qf7 {[%emt 0:00:23]} Kh8 {[%emt 0:00:13]} 50. Qe8+ {[%emt 0:00:14]} Kh7 {[%emt 0:00:06]} 51. e7 {[%emt 0:00:18] Weighted Error Value: White=0.31/Black=0.44.  Loses game:     	---       	Black=2      Mistake:       	White=2     	Black=3      Inaccurate:     	White=1     	Black=4      OK:         	White=8     	Black=9      Best:        	White=3     	Black=4      Brilliant:      	White=1     	---} 1-0

[Event "WWRR IM-Group 2024"]
[Site "Wachtebeke"]
[Date "2024.02.12"]
[Round "2.4"]
[White "Ochs, Daniel Elias"]
[Black "Milliet, Sophie"]
[Result "0-1"]
[ECO "E04"]
[WhiteElo "2280"]
[BlackElo "2384"]
[Annotator "TA"]
[PlyCount "102"]
[EventDate "2024.02.12"]
[EventType "tourn"]
[EventCountry "BEL"]
[SourceTitle "playchess.com"]
[Source "ChessBase"]
[SourceQuality "1"]
[TimeControl "40/5400+30:900+30"]

{[%evp 13,102,37,33,20,45,54,42,53,56,-53,-18,-46,-39,-52,85,-27,-44,-88,-98,-92,-96,-149,-148,-178,-165,-170,-181,-195,-82,-102,-8,-246,-215,-244,-222,-270,-233,-231,-235,-229,-234,-393,-379,-456,-457,-458,-362,-427,-308,-323,-325,-295,-334,-312,-341,-338,-307,-319,-319,-319,-319,-391,-391,-391,-391,-587,-555,-1698,-1543,-5035,-5941,-29980,-29981,-29981,-29982,-29982,-29983,-29983,-29984,-29984,-29985,-29985,-29984,-29989,-29987,-29996,-29995,-29995,-29993,-29996,-29994]} 1. d4 {[%emt 0:00:01]} Nf6 {[%emt 0:00:07]} 2. Nf3 {[%emt 0:00:05]} d5 {[%emt 0:00:22]} 3. c4 {[%emt 0:00:04]} e6 {[%emt 0:00:04]} 4. g3 {[%emt 0:00:04]} dxc4 {[%emt 0:00:32]} 5. Bg2 {[%emt 0:00:05]} Nbd7 {[%emt 0:00:11]} 6. O-O {[%emt 0:07:03]} c6 {[%emt 0:00:20]} 7. a4 {[%emt 0:09:58]} a5 {[%emt 0:00:19]} 8. Qc2 {[%emt 0:18:53][%cal Ob1a3]} b5 {[%emt 0:00:14]} 9. Ne5 {[%emt 0:04:21]} Nxe5 {[%emt 0:00:22]} 10. dxe5 {[%emt 0:00:05] White is slightly better.} Nd5 {[%emt 0:00:03]} 11. Rd1 {[%emt 0:03:27]} (11. axb5 $1 $14 cxb5 12. Nc3) 11... Qb6 $1 $15 {[%emt 0:04:25]} 12. axb5 {[%emt 0:09:47]} cxb5 {[%emt 0:00:06]} 13. Nc3 {[%emt 0:00:20]} Bb7 {[%emt 0:13:31]} (13... Bc5 $15 {stays ahead.} 14. Bxd5 exd5 (14... Bxf2+ $2 15. Kg2 $19) 15. Nxd5 Bxf2+ 16. Kg2 Bb7) 14. Nxd5 {[%emt 0:03:26]} (14. Rxd5 $1 $16 exd5 (14... Bxd5 15. Nxd5 exd5 16. Bxd5 $16) 15. Nxd5 Bxd5 16. Bxd5) 14... exd5 $11 {[%emt 0:00:57]} 15. Bxd5 {[%emt 0:00:33]} Bxd5 {[%emt 0:04:58]} 16. Rxd5 {[%emt 0:00:07] Qe4 is the strong threat.} Bc5 {[%emt 0:00:53]} 17. e4 {[%emt 0:03:39]} (17. Qe4 $142 O-O (17... Bxf2+ 18. Kf1 $11) 18. Be3 Bxe3 19. Qxe3 Qxe3 20. fxe3) 17... O-O {[%emt 0:02:42]} 18. Bf4 {[%emt 0:04:41]} a4 {[%emt 0:00:54]} 19. Kg2 {[%emt 0:03:46]} Rfc8 {[%emt 0:00:47]} 20. Rad1 {[%emt 0:14:32]} a3 {[%emt 0:21:03]} (20... h6 $19 21. h3 Qg6) 21. bxa3 {[%emt 0:01:02]} Bxa3 {[%emt 0:00:07]} (21... Rxa3 $17 {...Bf8 would now be deadly.} 22. Qe2 Bf8) 22. Be3 $2 {[%emt 0:06:58] This costs White the game.} (22. e6 $1 $11) 22... Qc6 $19 {[%emt 0:02:49]} 23. Rb1 {[%emt 0:04:03]} b4 {[%emt 0:03:48]} 24. Rc5 {[%emt 0:02:09]} b3 {[%emt 0:00:06]} 25. Rxc6 {[%emt 0:00:18]} bxc2 {[%emt 0:00:04]} 26. Rxc8+ {[%emt 0:00:09]} Rxc8 {[%emt 0:00:01][%mdl 4096] Endgame. KRB-KRB} 27. Rf1 {[%emt 0:00:45]} (27. Re1 {was called for.} Rb8 28. Re2) 27... c3 {[%emt 0:00:42] aiming for ...Rd8.} 28. Bc1 {[%emt 0:03:34]} Bb2 {[%emt 0:00:10]} 29. Kf3 {[%emt 0:00:25] [#]} Ra8 $1 {[%emt 0:03:30]} 30. Be3 {[%emt 0:00:35]} c1=Q {[%emt 0:13:27]} 31. Bxc1 {[%emt 0:00:18]} Ra1 {[%emt 0:00:02]} 32. Rd1 {[%emt 0:00:38][%cal Rd1d8] [#]} Kf8 $1 {[%emt 0:07:39]} 33. Rd8+ {[%emt 0:00:35]} Ke7 {[%emt 0:00:02]} 34. Bg5+ {[%emt 0:00:05]} f6 {[%emt 0:00:09]} 35. exf6+ {[%emt 0:00:05]} gxf6 {[%emt 0:00:04]} (35... Kxd8 $2 {perishes.} 36. fxg7+ Kc7 37. g8=Q $18) 36. Bxf6+ {[%emt 0:00:13]} Kxf6 {[%emt 0:00:04] KRB-KR} 37. Rc8 {[%emt 0:00:10]} Ke5 {[%emt 0:05:24]} 38. Rc4 {[%emt 0:00:18]} Re1 {[%emt 0:09:23] And now ...h5 would win.} 39. h3 {[%emt 0:02:06]} (39. g4 {was the only chance.}) 39... h5 {[%emt 0:04:46]} 40. h4 {[%emt 0:00:18]} Ba1 {[%emt 0:00:29]} 41. g4 {[%emt 0:06:20]} hxg4+ {[%emt 0:00:23]} 42. Kxg4 {[%emt 0:00:03]} Rxe4+ {[%emt 0:00:14] Black mates.} 43. f4+ {[%emt 0:00:02]} Kd5 {[%emt 0:00:22]} 44. Rc8 {[%emt 0:00:19]} Rc4 {[%emt 0:01:16]} 45. Rd8+ {[%emt 0:00:20]} Ke6 {[%emt 0:00:28]} 46. Rd1 {[%emt 0:00:28]} Bb2 {[%emt 0:01:03]} 47. Re1+ {[%emt 0:00:05]} Kf7 {[%emt 0:00:22]} 48. Kh5 {[%emt 0:01:18]} c2 {[%emt 0:00:17]} 49. f5 {[%emt 0:00:03]} c1=Q {[%emt 0:00:15]} 50. Rxc1 {[%emt 0:00:02]} Bxc1 {[%emt 0:00:59]} 51. f6 {[%emt 0:00:03]} Bb2 {[%emt 0:00:18] Weighted Error Value: White=0.75/Black=0.18 (very precise) .  Loses game:     	White=1     	---        Mistake:       	White=5     	Black=3      Inaccurate:     	White=4     	---        OK:         	White=6     	Black=8      Best:        	White=6     	Black=6      Strong:       	---       	Black=3} 0-1

[Event "WWRR IM-Group 2024"]
[Site "Wachtebeke"]
[Date "2024.02.12"]
[Round "2.5"]
[White "Hauchamps, Maxime"]
[Black "Gloeckler, Christian"]
[Result "0-1"]
[ECO "B90"]
[WhiteElo "2267"]
[BlackElo "2354"]
[Annotator "TA"]
[PlyCount "74"]
[EventDate "2024.02.12"]
[EventType "tourn"]
[EventCountry "BEL"]
[SourceTitle "playchess.com"]
[Source "ChessBase"]
[SourceQuality "1"]
[TimeControl "40/5400+30:900+30"]

{[%evp 24,74,23,26,19,19,24,12,0,-1,0,2,14,0,53,52,98,-88,-80,-87,-87,-178,-135,-179,-130,-164,-146,-202,-201,-186,-158,-284,-256,-379,-302,-342,-313,-330,-165,-143,-156,-309,-316,-525,-491,-12445,-29968,-29963,-2409,-29975,-29976,-29959,-6388]} 1. e4 {[%emt 0:00:03]} c5 {[%emt 0:00:05]} 2. Nf3 {[%emt 0:00:08]} d6 {[%emt 0:00:03]} 3. d4 {[%emt 0:00:07]} cxd4 {[%emt 0:00:03]} 4. Nxd4 {[%emt 0:00:06]} Nf6 {[%emt 0:00:04]} 5. Nc3 {[%emt 0:00:05]} a6 {[%emt 0:00:03]} 6. Be3 {[%emt 0:00:10]} e5 {[%emt 0:00:05]} 7. Nb3 {[%emt 0:00:05]} Be6 {[%emt 0:00:17]} 8. f3 {[%emt 0:00:06]} Be7 {[%emt 0:00:04]} 9. Qd2 {[%emt 0:00:08]} O-O {[%emt 0:00:06]} 10. O-O-O {[%emt 0:00:08]} Nbd7 {[%emt 0:00:11]} 11. g4 {[%emt 0:00:17]} b5 {[%emt 0:00:08]} 12. g5 {[%emt 0:00:36]} Nh5 {[%emt 0:00:06][%cal Bf6h5,Bh5g3,Bg3f1][%mdl 32]} 13. Nd5 {[%emt 0:02:43]} Bxd5 {[%emt 0:00:28]} 14. exd5 {[%emt 0:00:35]} f6 {[%emt 0:05:54]} 15. h4 {[%emt 0:34:38]} Ng3 {[%emt 0:09:29] The position is equal.} 16. Rg1 {[%emt 0:03:07]} Nxf1 {[%emt 0:00:37]} 17. Rdxf1 {[%emt 0:00:09]} a5 $1 {[%emt 0:02:12]} 18. g6 {[%emt 0:09:01]} a4 {[%emt 0:11:33]} (18... h6 $11) 19. gxh7+ {[%emt 0:04:47]} (19. Bh6 $5 hxg6 (19... gxh6 20. Qxh6) 20. Rxg6 $16) 19... Kh8 {[%emt 0:07:43]} (19... Kxh7 $14 20. Qd3+ (20. Qg2 Rf7 $11) 20... f5) 20. Na1 $2 {[%emt 0:15:01]} (20. Qg2 Rf7 21. Nd2 f5 $18) (20. Na5 $1 $16 {and life is bright.}) 20... f5 {[%emt 0:08:43][%cal Bf6f5,Bf5f4][%mdl 1056] Black has strong compensation.} (20... Kxh7 21. Qg2 Rf7 22. h5 $14) 21. h5 {[%emt 0:02:22]} Qe8 {[%emt 0:08:28]} (21... Kxh7 22. Qg2 Rf7 23. Qg6+ Kg8 24. h6 $18) 22. Rg6 {[%emt 0:02:56]} (22. Qg2 $17 Bf6 23. Bg5) 22... f4 $1 $19 {[%emt 0:06:01]} (22... Kxh7 23. Rfg1 Bf6 24. Qg2 $18) 23. Bf2 {[%emt 0:02:57]} e4 {[%emt 0:03:01] Hoping for ...e3.} (23... Kxh7 24. Re1 $15) 24. Bd4 {[%emt 0:06:43] [#]} Bf6 $36 {[%emt 0:02:51][%mdl 2048] White is under strong pressure.} 25. c3 {[%emt 0:01:14]} (25. Bxf6 $17 Nxf6 26. fxe4) 25... e3 {[%emt 0:03:33]} (25... Kxh7 26. Bxf6 Rxf6 (26... Nxf6 27. Nc2 $11) 27. Rxf6 Nxf6 28. Qxf4 $14) 26. Qd3 {[%emt 0:01:18]} a3 {[%emt 0:06:21] White must now prevent ...Ne5.} (26... Bxd4 27. cxd4 Rf6 (27... Kxh7 $2 28. Re6+ Kh8 29. Rxe8 $18) 28. Rfg1 Rxg6 (28... a3 $2 29. Rxg7 Rf8 30. Rg8+ $18) 29. Qxg6 Qxg6 30. hxg6 $17) 27. Nc2 {[%emt 0:04:34]} (27. h6 $17 axb2+ (27... Kxh7 28. Rxg7+ Kxh6 29. Qh7#) 28. Kxb2) 27... axb2+ {[%emt 0:02:34]} 28. Kb1 {[%emt 0:00:01]} (28. Kxb2 $142 Nc5 29. Bxc5 dxc5 30. h6) 28... Nc5 {[%emt 0:02:14]} 29. Qe2 Bxd4 {[%emt 0:03:21]} (29... Kxh7 30. Rfg1 b4 31. Rxg7+ Kh8 (31... Bxg7 32. Rxg7+ Kh6 33. Qg2 Ne6 34. dxe6 Rf5 35. Rh7+ Kxh7 36. Qg7#) 32. R7g6 $18) 30. Nxd4 {[%emt 0:05:34]} Qe5 {[%emt 0:00:55]} (30... Kxh7 31. Qc2 e2 32. Nxe2 $16) (30... b4 $142 31. Rfg1 Na4 (31... bxc3 $2 32. h6 $18)) 31. h6 {[%emt 0:01:06]} gxh6 {[%emt 0:05:31] ...Na4 would now be deadly.} (31... Kxh7 $2 32. Rxg7+ Kh8 33. Qc2 $18 (33. Kxb2 Qxd5 34. Ka1 Nb3+ 35. Nxb3 Qxb3 $11) (33. Kxb2 $2 Qxd5 34. Ka1 Qc4 $19)) 32. Rfg1 $2 {[%emt 0:02:52] [#]} (32. Rh1 $17 Qxd5 33. Qxb2) 32... Na4 $1 {[%emt 0:02:31]} (32... Kxh7 33. Rxh6+ (33. Qxb2 e2 $11) (33. Qc2 Ne4 $18) 33... Kxh6 34. Qg2 Rg8 35. Qh3+ (35. Qxg8 $2 Rxg8 36. Rh1+ Kg7 $19) 35... Qh5 36. Nf5+ Kh7 37. Qxh5#) (32... Qxd5 33. Qxb2 Na4 (33... Kxh7 $2 34. Qh2 $18) 34. Qb4 $17) 33. Qd3 {[%emt 0:02:10]} (33. Qc2 {was worth a try.} e2 (33... Kxh7 34. Rg7+ Kh8 35. Rh7#) (33... Qxd5 34. Ne6 $18) 34. Re1) 33... Qxd5 {[%emt 0:02:01][%cal Oa4c3] And now ...Nxc3+! would win.} (33... Kxh7 34. Rg7+ Kh8 35. Rh7#) 34. Rg8+ {[%emt 0:00:18]} (34. a3 $142 Rfc8 (34... Kxh7 35. Rg8+) 35. c4 Qxc4 (35... Rxc4 $2 {too greedy.} 36. Rg8+ $18) (35... bxc4 $2 36. Qc2 $19) 36. Qxc4 bxc4 37. Rxh6) 34... Rxg8 {[%emt 0:00:07]} 35. Rxg8+ {[%emt 0:00:22]} Rxg8 {[%emt 0:00:10]} 36. hxg8=Q+ {[%emt 0:00:08]} Qxg8 {[%emt 0:00:11]} 37. Ne2 {[%emt 0:00:10]} Qh7 {[%emt 0:05:34] Weighted Error Value: White=0.82/Black=0.26 (precise) .  Mistake:       	White=8     	Black=3      OK:         	White=7     	Black=7      Best:        	---       	Black=2      Strong:       	---       	Black=3} 0-1